bitfinex/quotes_SOLUSD_20240628
["timestamp","ask_amount","ask_price","bid_price","bid_amount"]
[1719588053767,23.0523,141.95,141.86,100.0]
[1719588053979,23.0523,141.95,141.86,142.44]
[1719588054188,30.097,141.95,141.86,100.0]
[1719588054859,7.0453,141.94,141.87,7.075]
[1719588055261,7.0453,141.94,141.86,100.0]
[1719588055565,8.45962154,141.94,141.86,100.0]
[1719588055767,7.0459,141.93,141.85,33.64]
[1719588056192,8.45962154,141.94,141.86,100.0]
[1719588056362,8.45962154,141.94,141.86,200.0]
[1719588056562,30.0972,141.95,141.86,200.0]
[1719588056890,23.0523,141.95,141.89,7.075]
[1719588057077,15.3747,141.98,141.88,100.0]
[1719588057270,23.83262154,141.98,141.88,133.64]
[1719588057587,7.0439,141.97,141.88,133.64]
[1719588057789,7.0439,141.97,141.89,7.075]
[1719588057975,7.0439,141.97,141.91,7.075]
[1719588058170,7.0439,141.97,141.9,100.0]
[1719588058374,15.3747,141.98,141.91,7.075]
[1719588058581,22.4179,141.98,141.9,100.0]
[1719588059393,7.0437,141.97,141.88,133.64]
[1719588059598,8.45842154,141.97,141.88,133.64]
[1719588059895,7.0441,141.97,141.9,100.0]
[1719588060479,7.044,141.97,141.88,133.64]
[1719588060679,1.41432154,141.96,141.87,16.5874]
[1719588060980,16.78902154,141.98,141.9,100.0]
[1719588061181,22.418,141.98,141.9,100.0]
[1719588061368,22.418,141.98,141.88,133.64]
[1719588061574,7.0438,141.97,141.88,133.64]
[1719588061880,7.0452,141.94,141.83,16.4742]
[1719588062076,1.41432154,141.96,141.88,33.64]
[1719588062279,16.65162154,141.95,141.86,100.0]
[1719588062485,1.41432154,141.94,141.85,50.1142]
[1719588062794,7.0462,141.92,141.85,50.1142]
[1719588062993,7.0468,141.91,141.83,100.0]
[1719588063300,7.0472,141.9,141.83,100.0]
[1719588063593,1.41432154,141.93,141.83,100.0]
[1719588063926,6.4156,141.9,141.77,132.4077]
[1719588064095,7.0501,141.84,141.77,50.2318]
[1719588064396,1.41432154,141.83,141.77,5.56756929]
[1719588064569,1.41432154,141.87,141.73,115.8159]
[1719588064771,1.41432154,141.87,141.75,100.0]
[1719588064772,21.41432154,141.87,141.75,100.0]
[1719588065087,7.0503,141.84,141.75,100.0]
[1719588065273,7.0503,141.84,141.75,107.0501]
[1719588065670,1.41432154,141.86,141.75,107.0501]
[1719588065871,8.46412154,141.85,141.75,107.0501]
[1719588066773,1.41432154,141.84,141.75,107.0501]
[1719588067193,7.0498,141.85,141.75,107.0501]
[1719588067393,1.41432154,141.86,141.75,140.6901]
[1719588067713,7.82992154,141.9,141.81,100.0]
[1719588068113,6.4156,141.9,141.81,133.64]
[1719588068794,6.4156,141.9,141.83,100.0]
[1719588069198,7.82992154,141.9,141.81,133.64]
[1719588069391,8.46212154,141.89,141.81,33.64]
[1719588069801,7.0482,141.88,141.81,33.64]
[1719588070002,6.4156,141.9,141.81,133.64]
[1719588070205,6.4156,141.9,141.83,100.0]
[1719588070924,1.41432154,141.89,141.81,33.64]
[1719588071097,1.41432154,141.89,141.79,106.1828]
[1719588071298,1.41432154,141.89,141.79,100.0]
[1719588071503,7.0482,141.88,141.79,100.0]
[1719588071713,7.82992154,141.9,141.79,100.0]
[1719588072015,7.82992154,141.9,141.78,54.92]
[1719588072016,6.4156,141.9,141.81,100.0]
[1719588073808,14.87712154,141.9,141.81,100.0]
[1719588074015,6.4156,141.9,141.81,100.0]
[1719588074323,14.87712154,141.9,141.81,100.0]
[1719588074609,7.82992154,141.9,141.81,100.0]
[1719588074909,8.46212154,141.89,141.79,100.0]
[1719588075413,1.41432154,141.89,141.81,100.0]
[1719588075601,14.87722154,141.9,141.81,100.0]
[1719588076115,7.0477,141.89,141.81,100.0]
[1719588076294,14.87712154,141.9,141.81,100.0]
[1719588077012,7.82992154,141.9,141.81,100.0]
[1719588077517,6.4156,141.9,141.81,100.0]
[1719588077812,6.4156,141.9,141.81,133.64]
[1719588078016,13.4629,141.9,141.81,133.64]
[1719588078515,14.87722154,141.9,141.81,133.64]
[1719588078717,7.0478,141.89,141.81,133.64]
[1719588078929,7.82992154,141.9,141.81,133.64]
[1719588081726,6.4156,141.9,141.82,100.0]
[1719588083525,1.41432154,141.89,141.8,100.0]
[1719588083935,6.4156,141.9,141.8,100.0]
[1719588084295,6.4156,141.9,141.83,100.0]
[1719588085111,6.4156,141.9,141.85,100.0]
[1719588085313,15.7734,141.91,141.86,7.075]
[1719588085935,6.2941,141.93,141.88,7.075]
[1719588086417,6.2941,141.93,141.87,100.0]
[1719588086734,6.2941,141.93,141.85,133.64]
[1719588086934,6.2941,141.93,141.85,100.0]
[1719588087707,22.5481,141.95,141.89,100.0]
[1719588087708,15.5033,141.95,141.89,100.0]
[1719588088027,15.5033,141.95,141.87,100.0]
[1719588088730,23.96262154,141.95,141.85,133.64]
[1719588089032,7.0452,141.94,141.85,133.64]
[1719588089234,16.91762154,141.95,141.85,133.64]
[1719588089235,8.46002154,141.93,141.85,33.64]
[1719588089407,8.46002154,141.93,141.83,116.1564]
[1719588089408,1.41432154,141.92,141.83,116.1564]
[1719588089915,1.41432154,141.94,141.85,100.0]
[1719588090321,15.5033,141.95,141.85,100.0]
[1719588090522,23.96232154,141.95,141.85,100.0]
[1719588091336,16.91762154,141.95,141.85,100.0]
[1719588091543,15.5033,141.95,141.87,100.0]
[1719588092443,16.91762154,141.95,141.87,100.0]
[1719588093616,15.5033,141.95,141.87,100.0]
[1719588095042,22.548,141.95,141.87,100.0]
[1719588095539,22.548,141.95,141.85,133.64]
[1719588096040,15.5033,141.95,141.87,100.0]
[1719588096232,16.91762154,141.95,141.87,100.0]
[1719588097410,1.41432154,141.94,141.85,50.557621]
[1719588097610,6.1614,141.92,141.83,105.74513731]
[1719588097841,6.1614,141.92,141.83,121.24843731]
[1719588098221,1.41432154,141.91,141.83,121.24843731]
[1719588098636,1.41432154,141.91,141.83,105.74513731]
[1719588099117,6.1614,141.92,141.83,105.74513731]
[1719588099714,6.1614,141.92,141.85,100.0]
[1719588101725,6.1614,141.92,141.83,5.74513731]
[1719588101726,6.1614,141.92,141.83,105.74513731]
[1719588101924,6.1614,141.92,141.83,100.0]
[1719588102155,7.54048154,141.92,141.83,100.0]
[1719588102434,6.12616,141.92,141.85,100.0]
[1719588102634,7.54048154,141.92,141.83,100.0]
[1719588103013,6.12616,141.92,141.85,100.0]
[1719588103237,6.12616,141.92,141.83,100.0]
[1719588103439,1.41432154,141.91,141.83,100.0]
[1719588104746,6.12616,141.92,141.83,100.0]
[1719588105044,7.54048154,141.92,141.83,100.0]
[1719588105236,6.12616,141.92,141.85,100.0]
[1719588106714,5.12616,141.92,141.85,100.0]
[1719588112343,5.12616,141.92,141.82,121.07563009]
[1719588112344,16.78282154,141.91,141.82,121.07563009]
[1719588112745,7.0475,141.9,141.82,121.07563009]
[1719588112954,8.46202154,141.89,141.82,105.57233009]
[1719588113248,8.46202154,141.89,141.82,5.57233009]
[1719588113440,7.0483,141.88,141.81,16.782821]
[1719588113641,7.0483,141.88,141.8,100.0]
[1719588113857,7.0483,141.88,141.8,115.3685]
[1719588114027,8.46212154,141.89,141.8,115.3685]
[1719588114229,8.46252154,141.88,141.8,121.13984477]
[1719588114437,7.0482,141.88,141.8,121.13984477]
[1719588114752,7.0479,141.89,141.8,121.13984477]
[1719588115627,7.0479,141.89,141.81,7.075]
[1719588115848,8.46162154,141.9,141.8,121.13984477]
[1719588116148,1.41432154,141.89,141.8,121.13984477]
[1719588116335,22.4153,141.91,141.82,100.0]
[1719588116652,16.78282154,141.91,141.82,100.0]
[1719588117030,23.82972154,141.91,141.82,100.0]
[1719588117229,16.78282154,141.91,141.82,100.0]
[1719588117431,15.3685,141.91,141.85,100.0]
[1719588117647,15.3685,141.91,141.85,107.075]
[1719588117931,15.3685,141.91,141.85,100.0]
[1719588118720,15.3685,141.91,141.83,100.0]
[1719588118721,16.78282154,141.91,141.83,100.0]
[1719588119151,15.3685,141.91,141.83,100.0]
[1719588119525,15.3685,141.91,141.84,1.4094159]
[1719588120541,15.3685,141.91,141.85,100.0]
[1719588120748,15.3685,141.91,141.86,1.40921719]
[1719588121459,15.3685,141.91,141.85,100.0]
[1719588124546,15.3685,141.91,141.84,33.64]
[1719588124858,15.3685,141.91,141.83,100.0]
[1719588125340,15.3685,141.91,141.85,100.0]
[1719588126666,15.3685,141.91,141.83,100.0]
[1719588126836,16.78282154,141.91,141.81,140.715]
[1719588127035,7.0485,141.88,141.8,21.13984477]
[1719588127362,21.9198,141.86,141.8,5.77134477]
[1719588127555,21.9198,141.86,141.78,100.0]
[1719588127779,21.9198,141.86,141.78,116.782822]
[1719588128343,21.9198,141.86,141.81,100.0]
[1719588129243,21.9198,141.86,141.82,7.075]
[1719588129776,15.6968,141.86,141.83,100.0]
[1719588130067,22.4958,141.9,141.83,100.0]
[1719588130273,22.4958,141.9,141.85,100.0]
[1719588130854,22.4958,141.9,141.83,100.0]
[1719588131351,22.4958,141.9,141.85,100.0]
[1719588131561,22.4958,141.9,141.86,1.31430871]
[1719588131763,22.4958,141.9,141.85,100.0]
[1719588131959,22.4958,141.9,141.83,100.0]
[1719588132349,22.4958,141.9,141.82,33.64]
[1719588132677,29.5431,141.9,141.8,107.075]
[1719588132852,22.4958,141.9,141.82,100.0]
[1719588133172,23.91012154,141.9,141.82,100.0]
[1719588133763,22.4958,141.9,141.84,100.0]
[1719588134157,22.4958,141.9,141.85,1.20324568]
[1719588134366,22.4958,141.9,141.86,101.20316103]
[1719588135374,22.4958,141.9,141.86,100.0]
[1719588136271,22.4958,141.9,141.83,22.4958]
[1719588136489,22.4958,141.9,141.82,100.0]
[1719588137653,22.4958,141.9,141.84,100.0]
[1719588139368,22.4958,141.9,141.86,100.0]
[1719588140682,16.3839,141.9,141.86,100.0]
[1719588141291,16.3839,141.9,141.84,100.0]
[1719588141964,16.3839,141.9,141.85,7.075]
[1719588142237,16.3839,141.9,141.84,100.0]
[1719588142377,16.3839,141.9,141.84,107.075]
[1719588143788,16.3839,141.9,141.86,100.0]
[1719588143998,21.9874,141.93,141.88,100.0]
[1719588144879,21.9874,141.93,141.86,100.0]
[1719588145396,21.9874,141.93,141.88,100.0]
[1719588145866,21.9874,141.93,141.86,100.0]
[1719588146071,21.9874,141.93,141.88,100.0]
[1719588146295,21.9874,141.93,141.86,100.0]
[1719588147099,21.9874,141.93,141.88,100.0]
[1719588147392,21.9874,141.93,141.89,1.40894053]
[1719588147587,21.9874,141.93,141.9,1.40884126]
[1719588149097,21.9874,141.93,141.88,100.0]
[1719588149873,21.9874,141.93,141.86,100.0]
[1719588150202,21.9874,141.93,141.88,100.0]
[1719588151207,21.9874,141.93,141.89,0.66698125]
[1719588151695,34.4847347,142.01,141.93,101.2]
[1719588151696,15.7669,141.97,141.93,101.2]
[1719588151911,15.7669,141.97,141.94,1.4085714]
[1719588152216,15.7669,141.97,141.93,1.2]
[1719588152394,15.7669,141.97,141.93,101.2]
[1719588152972,9.22548519,142.0,141.94,1.25991285]
[1719588153494,9.22548519,142.0,141.95,100.0]
[1719588154091,9.22548519,142.0,141.97,100.0]
[1719588154277,3.01838519,142.0,141.97,100.0]
[1719588155302,3.01838519,142.0,141.99,100.0]
[1719588156780,0.8447347,142.01,141.99,100.0]
[1719588157557,0.8447347,142.01,141.97,100.0]
[1719588158484,0.8447347,142.01,141.99,100.0]
[1719588159993,0.8447347,142.01,142.0,1.40796916]
[1719588160183,0.8447347,142.01,141.99,100.0]
[1719588160611,0.8447347,142.01,141.97,100.0]
[1719588161539,0.8447347,142.01,141.99,100.0]
[1719588162087,0.8447347,142.01,141.97,100.0]
[1719588162521,6.0618,142.0,141.94,100.0]
[1719588163015,6.0618,142.0,141.95,1.01566836]
[1719588163494,6.0618,142.0,141.96,1.01559694]
[1719588164203,6.0618,142.0,141.94,100.0]
[1719588164808,6.0618,142.0,141.93,5.79020912]
[1719588165021,6.0618,142.0,141.92,100.0]
[1719588165319,17.75222154,141.99,141.92,100.0]
[1719588165515,17.75222154,141.99,141.9,107.075]
[1719588165516,1.41432154,141.98,141.9,107.075]
[1719588165707,7.044,141.97,141.91,1.40766979]
[1719588165906,8.45872154,141.96,141.88,133.64]
[1719588166089,1.41432154,141.98,141.88,100.0]
[1719588166420,34.4847347,142.01,141.88,100.0]
[1719588166421,22.7057,141.95,141.88,100.0]
[1719588166759,15.661,141.95,141.88,100.0]
[1719588167715,15.661,141.95,141.88,105.812197]
[1719588169399,15.661,141.95,141.89,7.075]
[1719588170477,15.661,141.95,141.88,105.812197]
[1719588171625,15.661,141.95,141.89,0.64121543]
[1719588171822,15.661,141.95,141.9,0.64117027]
[1719588172211,15.661,141.95,141.88,105.812197]
[1719588172597,15.661,141.95,141.89,0.64021997]
[1719588172807,15.661,141.95,141.9,0.81177969]
[1719588173196,15.661,141.95,141.91,1.40903385]
[1719588173411,15.661,141.95,141.88,105.812197]
[1719588174102,15.661,141.95,141.89,1.40903612]
[1719588174302,15.661,141.95,141.9,1.40903532]
[1719588174697,5.661,141.95,141.9,1.40903532]
[1719588175206,5.661,141.95,141.9,100.0]
[1719588178637,5.661,141.95,141.91,7.075]
[1719588178924,5.661,141.95,141.9,100.0]
[1719588179152,5.661,141.95,141.88,139.452197]
[1719588180042,5.661,141.95,141.89,7.44717385]
[1719588180333,5.661,141.95,141.88,139.452197]
[1719588180535,7.07532154,141.95,141.88,105.812197]
[1719588181333,5.661,141.95,141.88,105.812197]
[1719588182098,5.661,141.95,141.9,100.0]
[1719588183040,5.661,141.95,141.88,105.812197]
[1719588183210,5.661,141.95,141.88,100.0]
[1719588187013,12.706,141.95,141.86,105.65194979]
[1719588187316,1.41432154,141.94,141.86,100.0]
[1719588187515,8.45962154,141.94,141.86,100.0]
[1719588187918,6.1122,141.92,141.86,6.3909]
[1719588188243,6.1122,141.92,141.83,115.1201]
[1719588188244,7.52652154,141.92,141.83,115.1201]
[1719588188544,6.1122,141.92,141.84,7.046]
[1719588188915,22.8422,141.92,141.86,16.73]
[1719588189420,22.8422,141.92,141.87,16.73]
[1719588189731,1.41432154,141.91,141.87,16.73]
[1719588189922,22.8422,141.92,141.87,16.73]
[1719588190248,1.41432154,141.91,141.86,16.73]
[1719588190543,1.41432154,141.91,141.86,23.805]
[1719588190748,1.41432154,141.91,141.84,14.121]
[1719588190957,1.41432154,141.91,141.84,7.046]
[1719588191114,16.5254,141.9,141.84,7.046]
[1719588195856,6.1122,141.92,141.87,100.0]
[1719588196024,6.1122,141.92,141.89,100.0]
[1719588196550,6.1122,141.92,141.89,7.075]
[1719588197158,6.1122,141.92,141.88,7.075]
[1719588198135,6.1122,141.92,141.85,100.0]
[1719588198734,6.1122,141.92,141.86,1.40928959]
[1719588198950,6.1122,141.92,141.87,100.0]
[1719588199131,6.1122,141.92,141.89,100.0]
[1719588199337,15.5018,141.94,141.89,100.0]
[1719588200257,15.5018,141.94,141.9,1.40900099]
[1719588200667,16.3273,142.0,141.93,100.0]
[1719588201435,16.3273,142.0,141.94,7.075]
[1719588201623,16.3273,142.0,141.95,100.0]
[1719588201827,6.6213,141.99,141.91,116.4265]
[1719588202046,6.6213,141.99,141.91,100.0]
[1719588202429,1.41432154,141.98,141.91,100.0]
[1719588202942,6.6213,141.99,141.92,1.40877287]
[1719588203250,6.6213,141.99,141.91,100.0]
[1719588203466,6.6213,141.99,141.92,1.40863627]
[1719588203641,6.6213,141.99,141.93,101.40858576]
[1719588204151,6.6213,141.99,141.93,100.0]
[1719588204353,6.6213,141.99,141.94,0.90982684]
[1719588204552,6.6213,141.99,141.91,100.0]
[1719588205157,6.6213,141.99,141.92,1.40863431]
[1719588205631,6.6213,141.99,141.93,1.40866287]
[1719588206951,8.03562154,141.99,141.91,100.0]
[1719588208042,6.6213,141.99,141.91,100.0]
[1719588209780,6.6213,141.99,141.92,1.40866532]
[1719588212052,6.6213,141.99,141.91,116.3273]
[1719588212750,1.41432154,141.98,141.91,16.3273]
[1719588212966,18.12432154,141.98,141.93,16.71]
[1719588213175,18.12432154,141.98,141.89,172.62698215]
[1719588213350,18.12432154,141.98,141.93,16.71]
[1719588213955,18.12432154,141.98,141.93,23.785]
[1719588214331,1.41432154,141.98,141.94,23.785]
[1719588214532,6.6213,141.99,141.94,23.785]
[1719588214758,6.6213,141.99,141.91,100.0]
[1719588214962,6.6213,141.99,141.95,16.71]
[1719588216462,1.41432154,141.98,141.89,172.62698215]
[1719588216765,1.41432154,141.98,141.93,16.71]
[1719588217362,18.12432154,141.98,141.92,23.785]
[1719588217551,18.12432154,141.98,141.89,172.62698215]
[1719588217754,18.12432154,141.98,141.92,16.71]
[1719588217943,16.71,141.97,141.92,16.71]
[1719588218264,18.12432154,141.98,141.92,16.71]
[1719588218643,18.12432154,141.98,141.93,7.075]
[1719588220166,16.71,141.98,141.92,16.71]
[1719588220969,18.12432154,141.98,141.93,7.075]
[1719588222068,1.41432154,141.98,141.89,5.78698215]
[1719588222267,16.71,141.96,141.9,16.71]
[1719588222568,15.9199,141.95,141.9,16.71]
[1719588222769,15.9199,141.95,141.91,16.71]
[1719588223267,32.6299,141.95,141.9,16.71]
[1719588224040,16.71,141.93,141.86,100.0]
[1719588224244,1.41432154,141.92,141.84,100.0]
[1719588224646,1.41432154,141.92,141.87,16.71]
[1719588224970,18.12432154,141.93,141.87,16.71]
[1719588225165,16.71,141.93,141.87,16.71]
[1719588225376,6.6497,141.94,141.89,16.71]
[1719588225671,24.77402154,141.94,141.88,16.71]
[1719588226248,24.77402154,141.94,141.88,23.785]
[1719588226677,16.71,141.93,141.88,16.71]
[1719588227178,23.3597,141.94,141.89,16.71]
[1719588227348,6.6497,141.94,141.89,16.71]
[1719588227548,6.6497,141.94,141.9,16.71]
[1719588227872,6.6497,141.94,141.91,16.71]
[1719588228066,15.9199,141.95,141.91,16.71]
[1719588228271,15.9199,141.95,141.92,16.71]
[1719588229088,6.562,141.97,141.93,100.0]
[1719588229246,6.562,141.97,141.94,16.71]
[1719588230451,6.562,141.97,141.95,16.71]
[1719588230657,22.3978,142.0,141.93,100.0]
[1719588232285,22.3978,142.0,141.95,100.0]
[1719588232582,15.9797,142.0,141.95,100.0]
[1719588233984,15.9797,142.0,141.93,100.0]
[1719588236257,15.9797,142.0,141.95,100.0]
[1719588237290,15.9797,142.0,141.92,15.7313]
[1719588237291,15.9797,142.0,141.93,100.0]
[1719588238860,1.41432154,141.99,141.91,33.42]
[1719588239283,17.39402154,142.0,141.92,100.0]
[1719588239591,15.9797,142.0,141.92,100.0]
[1719588240161,15.9797,142.0,141.94,100.0]
[1719588241085,15.9797,142.0,141.92,100.0]
[1719588241479,1.41432154,141.99,141.91,33.42]
[1719588242289,1.41432154,141.99,141.92,100.0]
[1719588242489,15.9797,142.0,141.94,100.0]
[1719588244608,15.9797,142.0,141.96,100.0]
[1719588244906,0.8447347,142.01,141.96,100.0]
[1719588245102,0.8447347,142.01,141.98,100.0]
[1719588250391,0.8447347,142.01,141.96,100.0]
[1719588251701,0.8447347,142.01,141.94,155.59573535]
[1719588252900,16.217,142.05,141.99,100.0]
[1719588254291,16.217,142.05,142.01,100.0]
[1719588255001,6.6564,142.07,142.01,100.0]
[1719588255208,6.6564,142.07,142.01,142.44]
[1719588255412,6.6564,142.07,142.01,100.0]
[1719588255849,6.6564,142.07,142.03,100.0]
[1719588256012,6.6564,142.07,142.0,133.42]
[1719588258299,8.07072154,142.07,141.99,15.3561]
[1719588258610,24.76072154,142.07,142.02,16.69]
[1719588258791,24.76072154,142.07,142.01,16.69]
[1719588259058,16.69,142.06,141.96,166.76]
[1719588259192,8.07072154,142.07,142.0,16.69]
[1719588259193,18.10432154,142.05,142.0,16.69]
[1719588259997,16.69,142.05,142.0,16.69]
[1719588260214,16.69,142.05,141.96,183.45]
[1719588260703,15.3276,142.04,141.97,1.06510774]
[1719588261301,15.3276,142.04,141.98,100.0]
[1719588261504,15.3276,142.04,141.96,116.69]
[1719588263812,15.3276,142.04,141.96,100.0]
[1719588265014,15.3276,142.04,141.98,100.0]
[1719588266514,15.3276,142.04,141.96,100.0]
[1719588267111,33.4,142.1,141.93,100.0]
[1719588267112,7.59482154,142.03,141.93,100.0]
[1719588267402,7.59482154,142.03,141.9,16.0337]
[1719588267403,6.1805,142.0,141.9,115.3276]
[1719588267610,1.41432154,141.99,141.9,115.3276]
[1719588267815,1.41432154,141.99,141.9,100.0]
[1719588268421,1.41432154,141.98,141.9,100.0]
[1719588268627,16.4342,141.97,141.9,5.6559676]
[1719588268789,6.4788,141.95,141.88,116.0953]
[1719588268993,6.4788,141.95,141.88,100.0]
[1719588272317,6.4788,141.95,141.9,100.0]
[1719588272838,6.4652,142.0,141.94,100.0]
[1719588273002,6.4652,142.0,141.96,100.0]
[1719588273192,6.4652,142.03,141.98,100.0]
[1719588274626,6.4652,142.03,141.97,33.4]
[1719588274627,16.4895,142.05,142.0,133.4]
[1719588274997,6.0839,142.07,142.0,133.4]
[1719588276026,7.49822154,142.07,142.0,40.475]
[1719588276231,7.49822154,142.07,142.0,33.4]
[1719588276399,6.0839,142.07,142.0,33.4]
[1719588276728,7.49822154,142.07,142.0,33.4]
[1719588276932,6.0839,142.07,142.0,33.4]
[1719588277613,7.49822154,142.07,142.0,33.4]
[1719588278428,7.49822154,142.07,141.97,100.0]
[1719588279924,7.49822154,142.07,141.97,107.075]
[1719588280560,15.3992,142.06,141.95,33.4]
[1719588280634,1.41432154,142.05,141.95,33.4]
[1719588280803,1.41432154,142.04,141.95,33.4]
[1719588281655,1.41432154,142.05,141.95,133.4]
[1719588282213,1.41432154,142.05,141.97,100.0]
[1719588282811,35.3992,142.06,141.95,133.4]
[1719588282812,1.41432154,142.04,141.95,133.4]
[1719588283010,1.41432154,142.04,141.95,33.4]
[1719588284232,1.41432154,142.05,141.95,133.4]
[1719588284425,1.41432154,142.04,141.95,133.4]
[1719588285129,1.41432154,142.04,141.96,7.075]
[1719588285525,1.41432154,142.05,141.96,7.075]
[1719588285831,6.4328,142.03,141.95,33.4]
[1719588286032,1.41432154,142.02,141.95,33.4]
[1719588286760,1.41432154,142.02,141.96,7.075]
[1719588289176,1.41432154,142.02,141.95,33.4]
[1719588289431,1.41432154,142.02,141.95,40.475]
[1719588289810,1.41432154,142.02,141.95,33.4]
[1719588290210,1.41432154,142.01,141.95,33.4]
[1719588290435,1.41432154,142.01,141.93,5.56115926]
[1719588290643,1.41432154,142.01,141.92,33.4]
[1719588290644,15.5017,142.0,141.92,33.4]
[1719588290825,15.5017,142.0,141.89,149.5899]
[1719588290826,1.41432154,141.99,141.89,149.5899]
[1719588291024,15.5017,142.0,141.92,100.0]
[1719588291519,15.5017,142.0,141.9,100.0]
[1719588291847,6.0354,141.98,141.9,100.0]
[1719588292642,6.0354,141.98,141.89,62.41676993]
[1719588292812,1.41432154,141.97,141.89,46.22686993]
[1719588293043,7.44972154,141.98,141.9,100.0]
[1719588293761,7.44972154,141.98,141.91,7.075]
[1719588293946,7.44972154,141.98,141.9,100.0]
[1719588293947,6.0354,141.98,141.9,100.0]
[1719588294451,6.0354,141.98,141.92,100.0]
[1719588294661,6.0354,141.98,141.92,133.4]
[1719588295155,15.5017,142.0,141.93,7.075]
[1719588295360,15.5017,142.0,141.92,133.4]
[1719588295361,15.5017,142.0,141.94,100.0]
[1719588295529,15.5017,142.0,141.95,0.44625999]
[1719588295735,15.5017,142.0,141.94,100.0]
[1719588296094,15.5017,142.0,141.95,7.075]
[1719588296238,15.5017,142.0,141.94,100.0]
[1719588296436,15.5017,142.0,141.92,133.4]
[1719588296837,15.5017,142.0,141.94,100.0]
[1719588297239,15.5017,142.0,141.95,7.075]
[1719588298838,15.5017,142.0,141.95,40.475]
[1719588299361,15.5017,142.0,141.97,7.075]
[1719588299759,15.5017,142.0,141.96,100.0]
[1719588300065,6.5217,142.01,141.96,100.0]
[1719588300760,6.5217,142.01,141.97,7.075]
[1719588301445,15.0602,142.04,141.98,107.075]
[1719588301667,15.0602,142.04,141.98,100.0]
[1719588301852,15.0602,142.04,141.95,33.4]
[1719588302054,15.0602,142.04,141.96,100.0]
[1719588302438,15.0602,142.04,141.97,7.075]
[1719588303344,15.0602,142.04,141.98,133.4]
[1719588304063,15.0602,142.04,141.99,7.075]
[1719588306863,15.0602,142.04,141.98,40.475]
[1719588307164,15.0602,142.04,141.98,33.4]
[1719588307362,16.47452154,142.04,141.95,153.99621865]
[1719588308350,15.0602,142.04,141.95,153.99621865]
[1719588308682,16.47452154,142.04,141.96,7.075]
[1719588308959,16.47452154,142.04,141.96,7.061]
[1719588309171,16.47452154,142.04,141.93,100.0]
[1719588309343,16.47452154,142.04,141.93,133.4]
[1719588309761,15.0602,142.04,141.95,100.0]
[1719588310559,15.0602,142.04,141.96,33.4]
[1719588310755,15.0602,142.04,142.01,16.7]
[1719588311130,16.47452154,142.04,142.0,16.7]
[1719588311563,33.17452154,142.04,141.99,16.7]
[1719588311742,33.17452154,142.04,141.93,105.72722889]
[1719588311944,33.17452154,142.04,141.99,16.7]
[1719588312253,16.47452154,142.04,141.99,16.7]
[1719588312440,33.17452154,142.04,141.99,16.7]
[1719588312638,33.17452154,142.04,141.94,20.0]
[1719588312853,33.17452154,142.04,141.99,16.7]
[1719588313466,6.6025,142.03,141.94,20.0]
[1719588313639,6.6025,141.99,141.95,16.7]
[1719588313842,16.3103,141.97,141.89,166.8]
[1719588314092,16.3103,141.97,141.93,16.7]
[1719588314845,17.72462154,141.97,141.93,16.7]